bitfinex-derivatives/quotes_BTCF0:USTF0_20251209
["timestamp","ask_amount","ask_price","bid_price","bid_amount"]
[1765282391287,0.11870834,90426.0,90425.0,0.05608]
[1765282391688,0.11970834,90426.0,90425.0,0.05608]
[1765282391898,0.05781,90419.0,90418.0,0.41925]
[1765282393288,0.05781,90419.0,90418.0,0.42025]
[1765282393998,0.05781,90419.0,90418.0,0.42125]
[1765282394894,0.05781,90419.0,90418.0,0.42025]
[1765282395697,0.05781,90419.0,90418.0,0.41925]
[1765282396196,0.05881,90419.0,90418.0,0.41925]
[1765282396402,0.001,90419.0,90418.0,0.41925]
[1765282396703,0.11752212,90423.0,90422.0,0.05845]
[1765282397003,0.11752212,90423.0,90422.0,0.0695094]
[1765282400497,0.05971212,90425.0,90424.0,0.0861592]
[1765282400704,0.00016588,90426.0,90425.0,0.05845]
[1765282402405,0.00016588,90426.0,90425.0,0.05945]
[1765282403205,0.00016588,90426.0,90425.0,0.06045]
[1765282403407,0.02971588,90426.0,90425.0,0.06045]
[1765282403996,0.05833588,90426.0,90425.0,0.06045]
[1765282404198,0.06939478,90426.0,90425.0,0.06045]
[1765282405208,0.06939478,90426.0,90425.0,0.05945]
[1765282406005,0.06939478,90426.0,90425.0,0.05845]
[1765282406203,0.06939478,90426.0,90425.0,0.05945]
[1765282406803,0.06939478,90426.0,90425.0,0.05845]
[1765282411514,0.06939478,90426.0,90425.0,0.02882]
[1765282412108,0.06939478,90426.0,90425.0,0.05701]
[1765282412610,0.0854992,90424.0,90423.0,0.3608]
[1765282412812,0.06837,90419.0,90418.0,0.0685598]
[1765282413014,0.05731,90419.0,90418.0,0.0685598]
[1765282415424,0.05731,90419.0,90418.0,0.0695598]
[1765282416107,0.05731,90419.0,90418.0,0.0705598]
[1765282417422,0.05731,90419.0,90418.0,0.0695598]
[1765282417623,0.05731,90419.0,90418.0,0.0705598]
[1765282418115,0.05731,90419.0,90418.0,0.0695598]
[1765282418826,0.05731,90419.0,90418.0,0.0685598]
[1765282419012,0.05731,90419.0,90418.0,0.02931]
[1765282419213,0.0281898,90420.0,90415.0,0.00110602]
[1765282419214,0.0855002,90416.0,90415.0,0.00110602]
[1765282420111,0.0855002,90416.0,90415.0,0.05860602]
[1765282420618,0.0865002,90416.0,90415.0,0.05860602]
[1765282420921,0.14818133,90416.0,90415.0,0.05860602]
[1765282422732,0.0683709,90410.0,90409.0,0.35487998]
[1765282422926,0.0683709,90410.0,90390.0,0.05860632]
[1765282422927,0.0683732,90391.0,90390.0,0.05860632]
[1765282423823,0.05731,90391.0,90390.0,0.05860632]
[1765282424320,0.05731,90391.0,90390.0,0.06260632]
[1765282425129,0.05731,90391.0,90390.0,0.06560632]
[1765282435550,0.0281916,90404.0,90398.0,0.0556]
[1765282435735,0.4260322,90399.0,90398.0,0.0556]
[1765282436740,0.4260322,90399.0,90398.0,0.0576]
[1765282437245,0.4260322,90399.0,90398.0,0.0291]
[1765282437438,0.4260322,90399.0,90398.0,0.0301]
[1765282437943,0.0652322,90399.0,90398.0,0.0301]
[1765282439141,0.0652322,90399.0,90398.0,0.0586]
[1765282454453,0.0652322,90399.0,90398.0,0.05812]
[1765282458949,0.0828422,90399.0,90398.0,0.05812]
[1765282465551,0.0652322,90399.0,90398.0,0.05812]
[1765282473762,0.00016588,90400.0,90399.0,0.0864122]
[1765282474155,0.0110604,90415.0,90414.0,0.07535]
[1765282474356,0.0692704,90415.0,90414.0,0.07535]
[1765282475867,0.0702704,90415.0,90414.0,0.07535]
[1765282476357,0.0692704,90415.0,90414.0,0.07535]
[1765282476561,0.0692704,90415.0,90414.0,0.07735]
[1765282477068,0.0692704,90415.0,90414.0,0.07635]
[1765282478067,0.0692704,90415.0,90414.0,0.07535]
[1765282478970,0.0692704,90415.0,90414.0,0.07635]
[1765282479569,0.0692704,90415.0,90414.0,0.07535]
[1765282479967,0.0692704,90415.0,90414.0,0.05899]
[1765282484175,0.05821,90415.0,90414.0,0.05899]
[1765282484870,0.05821,90415.0,90414.0,0.07535]
[1765282485265,0.0692695,90422.0,90421.0,0.0700494]
[1765282486660,0.0692695,90422.0,90421.0,0.05899]
[1765282487567,0.0692695,90422.0,90421.0,0.0700495]
[1765282489069,0.0702695,90422.0,90421.0,0.0700495]
[1765282489270,0.0712695,90422.0,90421.0,0.0700495]
[1765282498587,0.0227204,90417.0,90416.0,0.0406896]
[1765282498781,0.0810304,90417.0,90416.0,0.02963]
[1765282499277,0.0810304,90417.0,90416.0,0.05826]
[1765282501181,0.0820304,90417.0,90416.0,0.05826]
[1765282501381,0.001,90417.0,90416.0,0.05826]
[1765282501682,0.03233,90417.0,90416.0,0.41906]
[1765282501871,0.06131,90417.0,90416.0,0.41906]
[1765282502887,0.05931,90417.0,90416.0,0.41906]
[1765282503085,0.05956388,90421.0,90416.0,0.41906]
[1765282503284,0.00016588,90424.0,90423.0,0.0856093]
[1765282503686,0.05956388,90431.0,90429.0,0.0796486]
[1765282503883,0.05956388,90434.0,90433.0,0.05826]
[1765282504279,0.05956388,90434.0,90430.0,0.3608]
[1765282504280,0.08889388,90436.0,90435.0,0.05826]
[1765282504597,0.11787388,90436.0,90435.0,0.05826]
[1765282505287,0.05831,90436.0,90435.0,0.05826]
[1765282506486,0.05931,90436.0,90435.0,0.05826]
[1765282509181,0.0725,90436.0,90435.0,0.05826]
[1765282509389,0.0725,90436.0,90435.0,0.02963]
[1765282509789,0.0842887,90428.0,90427.0,0.05626]
[1765282509994,0.05669,90427.0,90426.0,0.00016588]
[1765282510196,0.41749,90427.0,90426.0,0.02800588]
[1765282510392,0.47705388,90427.0,90426.0,0.00016588]
[1765282510596,0.41749,90427.0,90426.0,0.00016588]
[1765282510792,0.47710104,90427.0,90426.0,0.05642588]
[1765282511296,0.47710104,90427.0,90426.0,0.05742588]
[1765282511498,0.47710104,90427.0,90426.0,0.05842588]
[1765282512496,0.47910104,90427.0,90426.0,0.05742588]
[1765282512698,0.47910104,90427.0,90426.0,0.05642588]
[1765282512892,0.48010104,90427.0,90426.0,0.05642588]
[1765282514392,0.47810104,90427.0,90426.0,0.05642588]
[1765282514592,0.47910104,90427.0,90426.0,0.05642588]
[1765282514997,0.48010104,90427.0,90426.0,0.05642588]
[1765282515698,0.48010104,90427.0,90426.0,0.06748478]
[1765282517296,0.47910104,90427.0,90426.0,0.06748478]
[1765282517597,0.47810104,90427.0,90426.0,0.06748478]
[1765282517899,0.47810104,90427.0,90426.0,0.05642588]
[1765282518890,0.11830104,90427.0,90426.0,0.05642588]
[1765282520396,0.05869,90427.0,90426.0,0.05642588]
[1765282520784,0.05769,90427.0,90426.0,0.05642588]
[1765282520983,0.05869,90427.0,90426.0,0.05642588]
[1765282521794,0.05769,90427.0,90426.0,0.05642588]
[1765282522800,0.05869,90427.0,90426.0,0.05642588]
[1765282523602,0.05769,90427.0,90426.0,0.05642588]
[1765282523798,0.05869,90427.0,90426.0,0.05642588]
[1765282524700,0.05769,90427.0,90426.0,0.05642588]
[1765282525592,0.05869,90427.0,90426.0,0.05642588]
[1765282530506,0.05869,90427.0,90426.0,0.06748478]
[1765282530897,0.05669,90427.0,90426.0,0.06748478]
[1765282531207,0.11730104,90427.0,90426.0,0.05642588]
[1765282531410,0.11730104,90427.0,90426.0,0.02800588]
[1765282531594,0.11730104,90427.0,90426.0,0.05656588]
[1765282532621,0.11830104,90427.0,90426.0,0.05656588]
[1765282533014,0.11730104,90427.0,90426.0,0.05656588]
[1765282533200,0.11830104,90427.0,90426.0,0.05656588]
[1765282533600,0.11730104,90427.0,90426.0,0.05656588]
[1765282533815,0.11830104,90427.0,90426.0,0.05656588]
[1765282534006,0.11730104,90427.0,90426.0,0.05656588]
[1765282534410,0.11830104,90427.0,90426.0,0.05656588]
[1765282535420,0.05869,90427.0,90426.0,0.05656588]
[1765282537115,0.05769,90427.0,90426.0,0.42662588]
[1765282537625,0.05869,90427.0,90426.0,0.42662588]
[1765282538013,0.11839026,90427.0,90426.0,0.42662588]
[1765282538213,0.05869,90427.0,90426.0,0.42662588]
[1765282538815,0.05769,90427.0,90426.0,0.42762588]
[1765282539018,0.05669,90427.0,90426.0,0.42762588]
[1765282539331,0.05769,90427.0,90426.0,0.42762588]
[1765282539622,0.05669,90427.0,90426.0,0.42762588]
[1765282540124,0.05669,90427.0,90426.0,0.06682588]
[1765282540324,0.05669,90427.0,90426.0,0.05656588]
[1765282541220,0.05669,90427.0,90426.0,0.07290588]
[1765282541523,0.0110587,90428.0,90427.0,0.0666388]
[1765282541725,0.0383387,90428.0,90427.0,0.0666388]
[1765282541922,0.0677587,90428.0,90427.0,0.0666388]
[1765282542926,0.0677587,90428.0,90427.0,0.0676388]
[1765282543426,0.0677587,90428.0,90427.0,0.0666388]
[1765282543722,0.14742881,90434.0,90433.0,0.0666381]
[1765282544025,0.0677584,90434.0,90433.0,0.0666381]
[1765282549724,0.067758,90434.0,90433.0,0.0666381]
[1765282553133,0.067758,90434.0,90433.0,0.0676381]
[1765282554532,0.067758,90434.0,90433.0,0.0666381]
[1765282558235,0.0567,90434.0,90433.0,0.0666381]
[1765282558937,0.067758,90434.0,90433.0,0.0666381]
[1765282559135,0.067758,90434.0,90433.0,0.0110581]
[1765282559434,0.01729,90435.0,90430.0,0.0683884]
[1765282559435,0.0686283,90431.0,90430.0,0.0683884]
[1765282559634,0.0686283,90431.0,90430.0,0.05733]
[1765282560637,0.05757,90434.0,90433.0,0.0683881]
[1765282561244,0.068628,90434.0,90433.0,0.0683881]
[1765282561543,0.068628,90434.0,90433.0,0.05733]
[1765282561742,0.068628,90434.0,90433.0,0.02939]
[1765282561932,0.0686288,90427.0,90426.0,0.05749588]
[1765282566740,0.05757,90427.0,90426.0,0.05749588]
[1765282566942,0.02828,90427.0,90426.0,0.41829588]
[1765282567142,0.05757,90427.0,90426.0,0.41829588]
[1765282568143,0.05757,90427.0,90426.0,0.41929588]
[1765282568738,0.05757,90427.0,90426.0,0.41829588]
[1765282569238,0.05757,90427.0,90426.0,0.41929588]
[1765282569943,0.05757,90427.0,90426.0,0.41829588]
[1765282570344,0.05757,90427.0,90426.0,0.41929588]
[1765282570844,0.05757,90427.0,90426.0,0.41829588]
[1765282571440,0.02828,90427.0,90426.0,0.41929588]
[1765282572236,0.05677,90427.0,90426.0,0.41929588]
[1765282573839,0.0678288,90427.0,90426.0,0.41929588]
[1765282574040,0.05677,90427.0,90426.0,0.41929588]
[1765282574841,0.05677,90427.0,90426.0,0.42795588]
[1765282576353,0.05677,90427.0,90426.0,0.42695588]
[1765282576853,0.05677,90427.0,90426.0,0.42795588]
[1765282577453,0.05677,90427.0,90426.0,0.42695588]
[1765282579351,0.07959841,90438.0,90437.0,0.02611]
[1765282579548,0.13911744,90456.0,90437.0,0.02611]
[1765282579549,0.09951881,90454.0,90453.0,0.0110556]
[1765282579751,0.04707,90480.0,90479.0,0.0110525]
[1765282580050,0.07556,90480.0,90479.0,0.0110525]
[1765282580449,0.0481751,90490.0,90489.0,0.0110512]
[1765282580647,0.0481751,90490.0,90489.0,0.3718512]
[1765282581747,0.0011051,90490.0,90489.0,0.3718512]
[1765282581947,0.00088673,90490.0,90489.0,0.3718512]
[1765282582745,0.01388673,90490.0,90489.0,0.3728512]
[1765282584158,0.00588673,90490.0,90489.0,0.3728512]
[1765282584456,0.15174436,90500.0,90499.0,0.04231]
[1765282584652,0.05824,90500.0,90499.0,0.02668]
[1765282584858,0.0692899,90500.0,90499.0,0.02668]
[1765282585056,0.05824,90500.0,90499.0,0.02668]
[1765282585860,0.06124,90500.0,90499.0,0.02668]
[1765282586452,0.06124,90500.0,90499.0,0.04231]
[1765282588458,0.06024,90500.0,90499.0,0.04231]
[1765282588845,0.05824,90500.0,90499.0,0.04231]
[1765282589045,0.05924,90500.0,90499.0,0.04231]
[1765282589853,0.05924,90500.0,90499.0,0.40311]
[1765282590058,0.06024,90500.0,90499.0,0.40311]
[1765282590258,0.002,90500.0,90499.0,0.40311]
[1765282590762,0.0013508,90500.0,90499.0,0.40311]
[1765282591359,0.0295108,90500.0,90499.0,0.40311]
[1765282591562,0.0579408,90500.0,90499.0,0.40311]
[1765282592254,0.0295108,90500.0,90499.0,0.40311]
[1765282592955,0.0013508,90500.0,90499.0,0.40311]
[1765282596664,0.0579408,90500.0,90499.0,0.76391]
[1765282598466,0.0579408,90500.0,90499.0,1.27699]
[1765282599363,0.0579408,90500.0,90499.0,0.40311]
[1765282599760,0.0750008,90500.0,90499.0,0.40311]
[1765282601169,0.0295108,90500.0,90499.0,0.40311]
[1765282601369,0.0579408,90500.0,90499.0,0.40311]
[1765282601869,0.0295108,90500.0,90499.0,0.40311]
[1765282602067,0.0013508,90500.0,90499.0,0.40311]
[1765282602661,0.0295108,90500.0,90499.0,0.40311]
[1765282603559,0.0013508,90500.0,90499.0,0.40311]
[1765282604268,0.0295108,90500.0,90499.0,0.40311]
[1765282605170,0.0013508,90500.0,90499.0,0.40311]
[1765282609173,0.0747548,90515.0,90514.0,0.0423082]
[1765282609363,0.0576948,90515.0,90514.0,0.0423082]
[1765282609763,0.0747548,90515.0,90514.0,0.0423082]
[1765282609976,0.06063529,90515.0,90514.0,0.0423082]
[1765282610162,0.05952829,90518.0,90517.0,0.0423078]
[1765282610368,0.07365,90535.0,90534.0,0.0423057]
[1765282611464,0.07475449,90540.0,90539.0,0.0423051]
[1765282612768,0.07475449,90540.0,90539.0,0.4031051]
[1765282613776,0.07975449,90540.0,90539.0,0.4031051]
[1765282614370,0.07475449,90540.0,90539.0,0.4031051]
[1765282614567,0.08575449,90540.0,90539.0,0.4031051]
[1765282615071,0.0110457,90537.0,90536.0,0.0110454]
[1765282615379,0.0691057,90537.0,90536.0,0.0266754]
[1765282615674,0.05806,90537.0,90536.0,0.0423054]
[1765282616264,0.06506,90537.0,90536.0,0.0423054]
[1765282620464,0.007,90537.0,90536.0,0.0423054]
[1765282622564,0.06506,90537.0,90536.0,0.0423054]
[1765282624371,0.03625,90537.0,90536.0,0.0423054]
[1765282624578,0.06506,90537.0,90536.0,0.0423054]
[1765282631386,0.06506,90537.0,90536.0,0.5551454]
[1765282633591,0.06506,90537.0,90536.0,0.5238854]
[1765282633986,0.0761054,90537.0,90536.0,0.5238854]
[1765282635093,0.0761054,90537.0,90536.0,0.5395154]
[1765282635480,0.06506,90537.0,90536.0,0.5395154]
[1765282635682,0.06506,90537.0,90536.0,0.5551454]
[1765282645584,0.06506,90537.0,90536.0,0.584905]
[1765282646400,0.06506,90537.0,90536.0,0.5551454]
[1765282646704,0.06506,90537.0,90536.0,0.58483212]
[1765282646910,0.06506,90537.0,90536.0,0.5551454]
[1765282647087,0.007,90537.0,90536.0,0.5551454]
[1765282647284,0.00110449,90540.0,90539.0,0.0423051]
[1765282647487,0.13222287,90565.0,90564.0,0.0423021]
[1765282647688,0.07283,90565.0,90564.0,0.0423021]
[1765282648103,0.05656,90569.0,90568.0,0.0423016]
[1765282648297,0.05656,90572.0,90571.0,0.0423012]
[1765282649184,0.03666,90559.0,90553.0,0.02967457]
[1765282649396,0.0477039,90549.0,90548.0,0.05596]
[1765282650696,0.0477039,90549.0,90548.0,0.02731]
[1765282650920,0.03666,90540.0,90539.0,0.00016568]
[1765282651093,0.45702478,90540.0,90539.0,0.02747568]
[1765282651289,0.45702478,90540.0,90539.0,0.05612568]
[1765282651601,0.37913,90540.0,90539.0,0.05612568]
[1765282651801,0.3608,90540.0,90539.0,0.05612568]
[1765282652001,0.3608,90540.0,90539.0,0.05912568]
[1765282653501,0.3608,90540.0,90539.0,0.05812568]
[1765282654105,0.3608,90540.0,90539.0,0.05612568]
[1765282654303,0.3608,90540.0,90539.0,0.05812568]
[1765282654504,0.3608,90540.0,90539.0,0.05912568]
[1765282654894,0.05956478,90545.0,90544.0,0.0670045]
[1765282655104,0.01833,90547.0,90546.0,0.05596]
[1765282655304,0.39746,90547.0,90546.0,0.05596]
[1765282656200,0.37913,90547.0,90546.0,0.05596]
[1765282656615,0.37913,90547.0,90546.0,0.05696]
[1765282657309,0.4085042,90547.0,90546.0,0.05696]
[1765282657901,0.3608,90547.0,90546.0,0.05696]
[1765282658106,0.39746,90547.0,90546.0,0.05696]
[1765282661802,0.39746,90547.0,90546.0,0.001]
[1765282662004,0.39746,90547.0,90546.0,0.07408]
[1765282662305,0.37913,90547.0,90546.0,0.07408]
[1765282662504,0.39746,90547.0,90546.0,0.07408]
[1765282665412,0.3608,90547.0,90546.0,0.07408]
[1765282666005,0.05955555,90556.0,90555.0,0.0670032]
[1765282666207,0.00016502,90558.0,90557.0,0.0670029]
[1765282667004,0.01849502,90558.0,90557.0,0.0670029]
[1765282668111,0.03682502,90558.0,90557.0,0.0670029]
[1765282668812,0.03882502,90558.0,90557.0,0.0670029]
[1765282669213,0.02049502,90558.0,90557.0,0.0670029]
[1765282669412,0.00216502,90558.0,90557.0,0.0670029]
[1765282670008,0.00416502,90558.0,90557.0,0.5802829]
[1765282675120,0.07292502,90558.0,90557.0,0.5802829]
[1765282676217,0.03256502,90558.0,90557.0,0.5802829]
[1765282676516,0.00416502,90558.0,90557.0,0.5802829]
[1765282681222,0.3608,90565.0,90557.0,0.5802829]
[1765282681428,0.0284,90578.0,90577.0,0.0836305]
[1765282682124,0.0110395,90586.0,90585.0,0.0836295]
[1765282682125,0.06876,90586.0,90585.0,0.0836295]
[1765282683423,0.06986388,90590.0,90589.0,0.083629]
[1765282684431,0.00110388,90590.0,90589.0,0.083629]
[1765282684727,0.42956,90596.0,90595.0,0.0836283]
[1765282684930,0.3718382,90596.0,90595.0,0.54287]
[1765282685132,0.4405982,90596.0,90595.0,0.54287]
[1765282685435,0.4405982,90596.0,90595.0,0.58567]
[1765282685636,0.42956,90596.0,90595.0,0.58567]
[1765282686127,0.42956,90596.0,90595.0,0.58667]
[1765282689932,0.3608,90596.0,90595.0,0.58667]
[1765282690746,0.0797974,90603.0,90602.0,0.0836275]
[1765282691429,0.06876,90603.0,90602.0,0.0836275]
[1765282692141,0.06976,90603.0,90602.0,0.0836275]
[1765282693236,0.06976,90603.0,90602.0,0.02979]
[1765282693442,0.08058,90594.0,90593.0,0.00016558]
[1765282693630,0.44138,90594.0,90593.0,0.00016558]
[1765282694031,0.46344,90594.0,90593.0,0.00016558]
[1765282694939,0.46344,90594.0,90593.0,0.00116558]
[1765282695438,0.46444,90594.0,90593.0,0.00116558]
[1765282695841,0.46444,90594.0,90593.0,0.00016558]
[1765282696537,0.44238,90594.0,90593.0,0.00016558]
[1765282696739,0.44238,90594.0,90593.0,0.08485558]
[1765282696942,0.44238,90594.0,90593.0,0.04334558]
[1765282697138,0.44238,90594.0,90593.0,0.00016558]
[1765282697837,0.44138,90594.0,90593.0,0.00016558]
[1765282698042,0.44138,90594.0,90593.0,0.00116558]
[1765282698445,0.44138,90594.0,90593.0,0.00016558]
[1765282698646,0.44138,90594.0,90593.0,0.00116558]
[1765282699143,0.44138,90594.0,90593.0,0.00016558]
[1765282700234,0.44238,90594.0,90593.0,0.00016558]
[1765282700937,0.44238,90594.0,90593.0,0.08485558]
[1765282702046,0.44238,90594.0,90593.0,0.00016558]
[1765282704453,0.44238,90594.0,90593.0,0.03981558]
[1765282705453,0.44238,90594.0,90593.0,0.07813558]
[1765282706350,0.44238,90594.0,90593.0,0.00016558]
[1765282707241,0.50193555,90594.0,90593.0,0.03981558]
[1765282707446,0.50193555,90594.0,90593.0,0.00016558]
[1765282708250,0.44238,90594.0,90593.0,0.07813558]
[1765282708451,0.44238,90594.0,90593.0,0.03981558]
[1765282709157,0.44238,90594.0,90593.0,0.00016558]
[1765282717949,0.44238,90594.0,90593.0,0.03981558]
[1765282718149,0.44238,90594.0,90593.0,0.08917418]
[1765282720466,0.3618,90594.0,90593.0,0.08917418]
[1765282722066,0.44532,90594.0,90593.0,0.11875688]
[1765282722968,0.40455,90594.0,90593.0,0.11875688]
[1765282723568,0.3618,90594.0,90593.0,0.11875688]
[1765282724656,0.001,90594.0,90593.0,0.11875688]
[1765282726361,0.001,90594.0,90593.0,0.08917418]
[1765282730968,0.08452,90594.0,90593.0,0.08917418]
[1765282732965,0.08452,90594.0,90593.0,0.07813558]
[1765282733271,0.08452,90594.0,90593.0,0.03981558]
[1765282733874,0.08452,90594.0,90593.0,0.07552558]
[1765282734172,0.44532,90594.0,90593.0,0.07552558]
[1765282736960,0.3618,90594.0,90593.0,0.07552558]
[1765282738576,0.001,90594.0,90593.0,0.07552558]
[1765282739665,0.03987,90594.0,90593.0,0.07552558]
[1765282740571,0.001,90594.0,90593.0,0.07552558]
[1765282741976,0.001,90594.0,90593.0,0.08656418]
[1765282743880,0.05952558,90604.0,90603.0,0.0863673]
[1765282744178,0.07386,90609.0,90608.0,0.0863667]
[1765282746776,0.07586,90609.0,90608.0,0.0863667]
[1765282747270,0.07586,90609.0,90608.0,0.07533]
[1765282747470,0.07586,90609.0,90593.0,0.03978558]
[1765282747471,0.07386,90594.0,90593.0,0.03978558]
[1765282747877,0.07386,90594.0,90593.0,0.05082418]
[1765282748073,0.03887,90594.0,90593.0,0.08653418]
[1765282748274,0.07386,90594.0,90593.0,0.07549558]
[1765282750280,0.3608,90595.0,90594.0,0.1018484]
[1765282750680,0.39659,90595.0,90594.0,0.1018484]
[1765282750978,0.43212,90595.0,90594.0,0.1018484]
[1765282751976,0.43312,90595.0,90594.0,0.1018484]
[1765282753876,0.001,90595.0,90594.0,0.1018484]
[1765282754284,0.03679,90595.0,90594.0,0.1018484]
[1765282754783,0.07232,90595.0,90594.0,0.1018484]
[1765282755183,0.001,90595.0,90594.0,0.1018484]
[1765282758487,0.3608,90602.0,90601.0,0.07114]
[1765282759389,0.07132,90611.0,90610.0,0.07114]
[1765282759589,0.07132,90611.0,90610.0,0.0821765]
[1765282760978,0.07432,90611.0,90610.0,0.0821765]
[1765282761880,0.07432,90611.0,90610.0,0.1018465]
[1765282762082,0.003,90611.0,90610.0,0.1018465]
[1765282762890,0.03573,90611.0,90610.0,0.1018465]
[1765282763075,0.003,90611.0,90610.0,0.1018465]
[1765282765395,0.12499454,90638.0,90636.0,0.0188]
[1765282765594,0.06546,90638.0,90637.0,0.06754]
[1765282765892,0.06546,90631.0,90630.0,0.06754]
[1765282766281,0.00110327,90640.0,90639.0,0.06754]
[1765282766583,0.06849327,90640.0,90639.0,0.06754]
[1765282766773,0.06849327,90640.0,90639.0,0.03393]
[1765282767193,0.06849327,90640.0,90632.0,0.3608]
[1765282767486,0.06739,90629.0,90628.0,0.07873978]
[1765282768489,0.06739,90629.0,90628.0,0.00016558]
[1765282768791,0.06739,90629.0,90628.0,0.00116558]
[1765282770492,0.06739,90629.0,90628.0,0.00016558]
[1765282771792,0.06739,90629.0,90628.0,0.06770558]
[1765282774287,0.06739,90629.0,90628.0,0.00016558]
[1765282774288,0.08756,90629.0,90628.0,0.00016558]
[1765282777593,0.08756,90629.0,90604.0,0.0110372]
[1765282777594,0.06739,90616.0,90615.0,0.0785758]
[1765282778296,0.3608,90618.0,90604.0,0.0110371]
[1765282778297,0.06739,90613.0,90612.0,0.0785761]
[1765282779585,0.3608,90618.0,90612.0,0.0785761]
[1765282779793,0.06739,90618.0,90617.0,0.0785756]
[1765282781098,0.06739,90618.0,90617.0,0.0795756]
[1765282782604,0.06739,90618.0,90617.0,0.0815756]
[1765282783289,0.3608,90620.0,90619.0,0.0110354]
[1765282783493,0.3608,90620.0,90617.0,0.0476456]
[1765282783494,0.00016526,90622.0,90621.0,0.0785751]
[1765282783890,0.03410526,90622.0,90621.0,0.0785751]
[1765282784095,0.06755526,90622.0,90621.0,0.0785751]
[1765282784597,0.42835526,90622.0,90621.0,0.06754]
[1765282785188,0.42835526,90622.0,90621.0,0.06854]
[1765282785893,0.44852526,90622.0,90621.0,0.06854]
[1765282786287,0.44852526,90622.0,90621.0,0.06954]
[1765282787599,0.42835526,90622.0,90621.0,0.06954]
[1765282789308,0.44852526,90622.0,90621.0,0.002]
[1765282790010,0.44852526,90622.0,90621.0,0.06954]
[1765282790399,0.42835526,90622.0,90621.0,0.06954]
[1765282794206,0.39490526,90622.0,90621.0,0.06954]
[1765282794410,0.36096526,90622.0,90621.0,0.06954]
[1765282794605,0.07873342,90639.0,90633.0,0.0754537]
[1765282794606,0.09110454,90634.0,90633.0,0.0754537]
[1765282794798,0.12442454,90634.0,90633.0,0.0754537]
[1765282794995,0.06489,90634.0,90633.0,0.0754537]
[1765282795200,0.05953454,90637.0,90635.0,0.0754534]
[1765282795409,0.3608,90639.0,90637.0,0.06442]
[1765282795410,0.12442454,90638.0,90637.0,0.06442]
[1765282795894,0.06489,90638.0,90637.0,0.06442]
[1765282796493,0.06689,90638.0,90637.0,0.06442]
[1765282800608,0.06689,90638.0,90637.0,0.03182]
[1765282801104,0.06689,90638.0,90637.0,0.06442]
[1765282802100,0.06689,90638.0,90637.0,0.0754532]
[1765282802503,0.0662763,90638.0,90637.0,0.0754532]
[1765282806807,0.0013863,90638.0,90637.0,0.0754532]
[1765282807404,0.0662763,90638.0,90637.0,0.0754532]
[1765282808711,0.06217,90629.0,90628.0,0.37199988]
[1765282808910,0.06217,90629.0,90628.0,0.04370988]
[1765282809114,0.06217,90629.0,90628.0,0.00016558]
[1765282810813,0.06217,90629.0,90628.0,0.06258558]
[1765282814419,0.03198,90629.0,90628.0,0.06258558]
[1765282815209,0.06217,90629.0,90628.0,0.06258558]
[1765282816028,0.42297,90638.0,90637.0,0.0734532]
[1765282816913,0.00110327,90640.0,90639.0,0.06242]
[1765282817115,0.00110297,90665.0,90639.0,0.42322]
[1765282817116,0.05953454,90657.0,90639.0,0.42322]
[1765282817312,0.03198,90657.0,90656.0,0.0734509]
[1765282817517,0.42297,90660.0,90659.0,0.06242]
[1765282817908,0.06217,90657.0,90651.0,0.0110314]
[1765282818115,0.06217,90655.0,90654.0,0.0435411]
[1765282818316,0.01076,90657.0,90647.0,0.36096548]
[1765282818317,0.06217,90651.0,90650.0,0.0110315]
[1765282818514,0.01076,90657.0,90647.0,0.39347548]
[1765282818515,0.06217,90648.0,90647.0,0.39347548]
[1765282818707,0.42297,90648.0,90647.0,0.00016548]
[1765282818909,0.06217,90648.0,90647.0,0.03267548]
[1765282819117,0.03198,90648.0,90647.0,0.06258548]
[1765282819318,0.06217,90652.0,90651.0,0.06242]
[1765282819710,0.06217,90652.0,90648.0,0.0110319]
[1765282819711,0.06517,90657.0,90656.0,0.0734509]
[1765282820016,0.003,90657.0,90656.0,0.0734509]
[1765282820206,0.3608,90660.0,90659.0,0.06242]
[1765282820406,0.06217,90660.0,90659.0,0.06242]
[1765282821407,0.03308297,90665.0,90664.0,0.0925699]
[1765282821615,0.3608,90678.0,90677.0,0.0734483]
[1765282821915,0.06217,90681.0,90680.0,0.06242]
[1765282822112,0.06217,90681.0,90672.0,0.3608]
[1765282822113,0.06138,90674.0,90673.0,0.0711788]
[1765282823012,0.06138,90685.0,90684.0,0.06015]
[1765282823206,0.06138,90679.0,90678.0,0.06015]
[1765282823713,0.06138,90673.0,90672.0,0.06015]
[1765282824026,0.06138,90669.0,90668.0,0.06031548]
[1765282824219,0.06138,90669.0,90668.0,0.00016548]
[1765282824420,0.06138,90669.0,90668.0,0.03172548]
[1765282824620,0.06138,90669.0,90668.0,0.06031548]
[1765282827221,0.06138,90669.0,90668.0,0.00016548]
[1765282827525,0.06138,90669.0,90668.0,0.06031548]
[1765282828711,0.42218,90669.0,90668.0,0.06031548]
[1765282829318,0.42218,90669.0,90668.0,0.03172548]
[1765282829518,0.42218,90669.0,90668.0,0.00016548]
[1765282829919,0.42218,90678.0,90677.0,0.06015]
[1765282830415,0.06138,90678.0,90677.0,0.06015]
[1765282830813,0.11686622,90687.0,90671.0,0.01849]
[1765282830814,0.17824622,90687.0,90686.0,0.06015]
[1765282831014,0.06138,90687.0,90686.0,0.06015]
[1765282832718,0.07137,90671.0,90670.0,0.3608]
[1765282832913,0.00999,90678.0,90650.0,0.03698]
[1765282832914,0.06138,90669.0,90668.0,0.06031548]
[1765282833525,0.06138,90669.0,90668.0,0.00016548]
[1765282835321,0.06138,90669.0,90668.0,0.03172548]
[1765282835524,0.06138,90669.0,90668.0,0.06031548]
[1765282835722,0.06138,90669.0,90668.0,0.07134488]
[1765282836433,0.06138,90669.0,90668.0,0.06031548]
[1765282836727,0.06138,90669.0,90668.0,0.03172548]
[1765282836932,0.06138,90669.0,90668.0,0.00016548]
[1765282838022,0.06138,90669.0,90668.0,0.03172548]
[1765282839533,0.06138,90669.0,90668.0,0.00016548]
[1765282841235,0.06138,90669.0,90668.0,0.06031548]
[1765282843033,0.06138,90669.0,90668.0,0.00016548]
[1765282843534,0.06138,90669.0,90668.0,0.03172548]
[1765282843735,0.06138,90669.0,90668.0,0.00016548]
[1765282844539,0.01854,90657.0,90651.0,0.0110314]
[1765282844721,0.06138,90652.0,90651.0,0.06015]
[1765282845825,0.06138,90652.0,90651.0,0.06415]